Cogmind - Beta 11.1 @@@ ROGUE MODE // 2022.04.26 @ 22:36:35 Player: Musaab Result: Destroyed by G-50 Soldier with Heavy Laser Performance ------------- Evolutions (2) 1000 Regions Visited (3) 600 Robots Destroyed (21) 105 Value Destroyed (757) 757 Prototype IDs (3) 60 Alien Tech Used (0) 0 Bonus (200) 200 TOTAL SCORE: 2722 Bonus ------- Pacifist 200 Cogmind --------- Core Integrity 0/550 Matter 56/300 Energy 59/100 System Corruption 0% Temperature Cool (9) Movement Core (700) Ox13 Location -8/Materials Parts ------- > --- POWER (1) -------- (None) > --- PROPULSION (4) --- Faulty Improved Flight Unit > --- UTILITY (4) ------ Large Storage Unit Signal Interpreter Improved Field Recycling Unit > --- WEAPON (2) ------- Beam Rifle Advanced Assault Cannon > --- INVENTORY (15) --- Small Storage Unit Large Storage Unit Large Storage Unit Particle Charger Particle Charger Lightning Gun Advanced Assault Cannon Missile Launcher Missile Launcher Peak State ------------ > --- POWER ------------ Improved Ion Engine > --- PROPULSION ------- Aluminum Leg Aluminum Leg Aluminum Leg Aluminum Leg > --- UTILITY ---------- Large Storage Unit Signal Interpreter Improved Field Recycling Unit Improved Field Recycling Unit > --- WEAPON ----------- Advanced Assault Cannon Advanced Assault Cannon > --- INVENTORY -------- Light Treads Improved Flight Unit Small Storage Unit Large Storage Unit Large Storage Unit Particle Charger Particle Charger Lightning Gun Beam Rifle Light Cannon Flak Cannon Flak Cannon Missile Launcher Missile Launcher Missile Launcher [Rating: 27] Favorites ----------- Power Ion Engine Engine Ion Engine Propulsion Aluminum Leg Treads Light Treads Leg Aluminum Leg Flight Unit Improved Flight Unit Utility Signal Interpreter Device Improved Field Recycling Unit Storage Large Storage Unit Processor Signal Interpreter Weapon Flak Cannon Energy Gun Small Laser Ballistic Cannon Flak Cannon Launcher Missile Launcher Build | -11 -10 -9 -8 ------- Run | Scr Mat Mat Mat Slots Evolved 4 | . . 2 2 Power . | . . . . Propulsion 2 | . . 2 . Utility 2 | . . . 2 Weapon . | . . . . Parts Attached 34 | 6 1 13 14 Power 3 | 1 . 2 . Engine 3 | 1 . 2 . Core . | . . . . Reactor . | . . . . Propulsion 13 | 2 . 7 4 Treads 3 | 2 . . 1 Leg 9 | . . 7 2 Wheel . | . . . . Hover . | . . . . Flight 1 | . . . 1 Utility 5 | 1 1 1 2 Device 2 | . . . 2 Storage 2 | 1 . 1 . Processor 1 | . 1 . . Hackware . | . . . . Protection . | . . . . Artifact . | . . . . Weapon 13 | 2 . 3 8 Energy Gun 3 | 2 . . 1 Energy Cannon . | . . . . Ballistic Gun . | . . . . Ballistic Cannon 9 | . . 3 6 Launcher 1 | . . . 1 Special Weapon . | . . . . Impact Weapon . | . . . . Slashing Weapon . | . . . . Piercing Weapon . | . . . . Special Melee Weapon . | . . . . Unidentified Prototypes 1 | . . . 1 Parts Lost 14 | . . 1 13 Power 1 | . . . 1 Propulsion 8 | . . 1 7 Utility 1 | . . . 1 Weapon 4 | . . . 4 Highest Loss Streak 8 | . . 1 8 To Critical Strikes . | . . . . Average Slot Usage (%) 88 | . 93 98 75 Engine 7 | . 14 11 2 Treads 10 | . 28 10 3 Leg 20 | . . 32 18 Device 7 | . . . 17 Storage 10 | . 14 11 9 Processor 9 | . 7 11 9 Energy Gun 5 | . 28 . . Ballistic Cannon 15 | . . 20 16 Naked Turns . | . . . . Heaviest Build 63 | 13 13 39 63 Greatest Support 40 | 40 40 40 40 Greatest Overweight (x) 20 | . . 2 20 Average Overweight (x) . | . . . 3 Largest Inventory Capacity 15 | 8 8 15 15 Average Capacity 11 | 6 8 10 15 Most Carried 15 | 4 8 15 15 Average Carried 10 | 2 6 9 14 Final Capacity 15 | 8 8 15 15 Final Carried 14 | 4 8 14 9 Class Distribution -------------------- 84% | Mutant 15% | Scavenger-Mutant Dominant Class ---------------- Mutant | -10/Materials Mutant | -9/Materials Mutant | -8/Materials Resources | -11 -10 -9 -8 ----------- Run | Scr Mat Mat Mat Matter Collected 878 | 183 . 382 313 Remotely . | . . . . Salvage Created 520 | . . 286 234 Parts 29 | . . 23 6 Haulers Intercepted 1 | . . . 1 Recyclers Shooed 3 | . . 2 1 Parts Field Recycled 4 | . . . 4 Retrieved Matter 56 | . . . 56 Parts Self-Destructed . | . . . . Prevented . | . . . . Kills | -11 -10 -9 -8 ------- Run | Scr Mat Mat Mat Combat Hostiles Destroyed 17 | . . 10 7 Cannons 17 | . . 10 7 Classes Destroyed 8 | . . 5 3 Worker 1 | . . 1 . Builder 1 | . . . 1 Hauler 1 | . . . 1 Recycler 1 | . . 1 . Grunt 12 | . . 7 5 Duelist 1 | . . 1 . Sentry 3 | . . 2 1 Hunter 1 | . . . 1 Best Kill Streak 3 | . . 2 3 Combat Bots Only 2 | . . 2 2 Max Kills in Single Turn 1 | . . 1 1 Gunslinging . | . . . . Exploded . | . . . . Melee . | . . . . Uniques/NPCs Destroyed . | . . . . Combat | -11 -10 -9 -8 -------- Run | Scr Mat Mat Mat Damage Taken 2749 | . . 700 2049 Core 689 | . . 121 568 Absorbed by Shields . | . . . . Core Remaining (%) 89 | 100 100 69 . Volleys Fired 77 | . 1 42 34 Largest 2 | . 2 2 2 Hottest 104 | . 90 88 104 Shots Fired 141 | . 2 79 60 Gun 4 | . 2 . 2 Cannon 137 | . . 79 58 Launcher . | . . . . Special . | . . . . Kinetic 137 | . . 79 58 Thermal 4 | . 2 . 2 Explosive . | . . . . Electromagnetic . | . . . . Robot Hit Streak 12 | . 1 12 9 Robot Miss Streak 8 | . 1 8 5 Penetration Max . | . . . . Secondary Targets . | . . . . Shots Hit Robots 103 | . 1 65 37 Core Hits 62 | . 1 42 19 Critical Kills . | . . . . Critical Parts Destroyed . | . . . . Critical Strikes 3 | . . . 3 Blast 3 | . . . 3 Melee Attacks . | . . . . Impact . | . . . . Slashing . | . . . . Piercing . | . . . . Sneak Attacks . | . . . . Combat Hostiles . | . . . . Follow-up Attacks . | . . . . Damage Inflicted 1930 | . 10 984 936 Guns 38 | . 10 . 28 Cannons 1777 | . . 870 907 Explosions . | . . . . Melee . | . . . . Ramming 115 | . . 114 1 Kinetic 1777 | . . 870 907 Thermal 38 | . 10 . 28 Explosive . | . . . . Electromagnetic . | . . . . Impact . | . . . . Slashing . | . . . . Piercing . | . . . . Highest Corruption . | . . . . Average Corruption . | . . . . Corruption Purged . | . . . . Corruption Blocked . | . . . . Overload Shots . | . . . . Overflow Damage 49 | . . . 49 Projectiles 49 | . . . 49 Explosions . | . . . . Melee . | . . . . Knockbacks 40 | . . 27 13 Impact 1 | . . 1 . Kinetic 37 | . . 24 13 Secondary 2 | . . 2 . Self-Inflicted Damage . | . . . . Shots . | . . . . Rammed 2 | . 1 . 1 Targets Rammed 31 | . 1 29 1 Kicked 29 | . . 29 . Crushed . | . . . . Highest Temperature 315 | . 30 315 107 Average Temperature 71 | . 18 99 29 Received Heat Transfer 1419 | . . 339 1080 Effects 3 | . . 3 . Interference 3 | . . 3 . Siege Activations . | . . . . Robots Corrupted . | . . . . Combat Hostiles . | . . . . Parts Fried . | . . . . Impact Corruptions . | . . . . Robots Melted . | . . . . Combat Hostiles . | . . . . Parts Melted . | . . . . Heat Transferred 99 | . 25 . 74 Parts Sabotaged . | . . . . Parts Stolen . | . . . . Parts Stripped . | . . . . Power Chain Reactions . | . . . . Missiles Intercepted . | . . . . Alert | -11 -10 -9 -8 ------- Run | Scr Mat Mat Mat Peak Influence 124 | . 29 96 124 Initial 39 | . . 11 39 Average 43 | . 19 44 58 Maximum Alert Level . | . . . . Low Security (%) 100 | 100 100 100 100 Level 1 . | . . . . Level 2 . | . . . . Level 3 . | . . . . Level 4 . | . . . . Level 5 . | . . . . High Security . | . . . . Max Security . | . . . . Squads Dispatched 4 | . 1 1 2 Investigation 2 | . . . 2 Extermination . | . . . . Reinforcement 2 | . 1 1 . Assault . | . . . . Garrison . | . . . . Intercept . | . . . . Searches Triggered . | . . . . Construction Impeded . | . . . . Haulers Reinforced . | . . . . Active Scanning Responses . | . . . . Cargo Convoy Interrupts . | . . . . Stealth | -11 -10 -9 -8 --------- Run | Scr Mat Mat Mat Distress Signals 3 | . . 2 1 Communications Jammed . | . . . . Distress Signals . | . . . . Times Spotted 23 | . 2 10 11 Peak Tracking Total 4 | . 1 4 4 Tactical Retreats 1 | . . . 1 Traps | -11 -10 -9 -8 ------- Run | Scr Mat Mat Mat Traps Triggered . | . . . . Indirectly . | . . . . Trap Hack Attempts . | . . . . Triggered . | . . . . Disarmed . | . . . . Reprogrammed 12 | . . 6 6 Reused 1 | . . . 1 Traps Extracted . | . . . . Installed . | . . . . Triggered 1 | . . . 1 Machines | -11 -10 -9 -8 ---------- Run | Scr Mat Mat Mat Machines Disabled 2 | . . . 2 Max in Single Turn 1 | . . . 1 Machines Sabotaged . | . . . . Garrisons Compromised . | . . . . Overloaded Fab Kills . | . . . . Hacking | -11 -10 -9 -8 --------- Run | Scr Mat Mat Mat Machines Accessed 9 | . 3 5 1 Terminals 9 | . 3 5 1 Fabricators . | . . . . Repair Stations . | . . . . Recycling Units . | . . . . Scanalyzers . | . . . . Garrison Access . | . . . . Total Hacks 34 | . 11 20 3 Successful 20 | . 8 11 1 Failed 14 | . 3 9 2 Catastrophic 3 | . . 3 . Database Lockouts . | . . . . Manual . | . . . . Terminals 34 | . 11 20 3 Fabricators . | . . . . Repair Stations . | . . . . Recycling Units . | . . . . Scanalyzers . | . . . . Garrison Access . | . . . . Terminal Hacks 20 | . 8 11 1 Record 7 | . 4 3 . Prototype ID Bank 1 | . . 1 . Alert Level 1 | . . 1 . Unreport Threat 1 | . . 1 . Reprogram Traps 2 | . . 1 1 Dispatch Records 2 | . 1 1 . Maintenance Status 1 | . . 1 . Security Status 1 | . . 1 . Surveillance Status 1 | . 1 . . Hauler Manifests 3 | . 2 1 . Fabricator Hacks . | . . . . Repair Station Hacks . | . . . . Recycling Unit Hacks . | . . . . Scanalyzer . | . . . . Garrison Access Hacks . | . . . . Unauthorized Hacks . | . . . . Terminals . | . . . . Fabricators . | . . . . Repair Stations . | . . . . Recycling Units . | . . . . Scanalyzers . | . . . . Garrison Access . | . . . . Data Cores Recovered . | . . . . Used . | . . . . Hacking Detections 6 | . 2 3 1 Full Trace Events 4 | . 1 2 1 Feedback Events . | . . . . Feedback Blocked . | . . . . Robot Schematics Acquired . | . . . . Robots Built . | . . . . Authchips . | . . . . Time . | . . . . Total Robot Build Rating . | . . . . Part Schematics Acquired . | . . . . Parts Built . | . . . . Authchips . | . . . . Time . | . . . . Total Part Build Rating . | . . . . Parts Repaired . | . . . . Time . | . . . . Parts Recycled . | . . . . Recycled Matter . | . . . . Retrieved Matter . | . . . . Retrieved Components . | . . . . Parts Scanalyzed . | . . . . Part Schematics Acquired . | . . . . Parts Damaged . | . . . . Bothacking | -11 -10 -9 -8 ------------ Run | Scr Mat Mat Mat Used RIF Installer . | . . . . Robots Hacked . | . . . . Non-combat . | . . . . Combat . | . . . . Robot Hacks Applied . | . . . . Relay Couplers Released . | . . . . Fabnet Peak Effective % . | . . . . Robots Rewired . | . . . . Allies Hacked . | . . . . Hacks Repelled . | . . . . Allies | -11 -10 -9 -8 -------- Run | Scr Mat Mat Mat Total Allies . | . . . . Largest Group . | . . . . Highest-Rated Group . | . . . . Highest-Rated Ally . | . . . . Total Orders . | . . . . Ally Attacks . | . . . . Total Damage . | . . . . Kills . | . . . . Allies Corrupted . | . . . . Allies Melted . | . . . . Intel | -11 -10 -9 -8 ------- Run | Scr Mat Mat Mat Robot Analysis Total . | . . . . Derelict Logs Recovered . | . . . . Drone Launches . | . . . . Drone Recoveries . | . . . . Exploration | -11 -10 -9 -8 ------------- Run | Scr Mat Mat Mat Turns Passed 1865 | 76 333 709 747 Spaces Moved 745 | 42 200 325 178 Core 15 | 3 . . 12 Treads 375 | 39 200 133 3 Legs 355 | . . 192 163 Wheels . | . . . . Hover . | . . . . Flight . | . . . . Fastest Speed 50 | 50 160 120 120 Average Speed 191 | 152 160 139 330 Slowest Speed 1050 | 160 160 260 1050 Overloaded Moves . | . . . . Propulsion Burnouts . | . . . . Robots Hopped . | . . . . Cave-ins Triggered . | . . . . Exploration Rate (%) 18 | 3 29 27 13 Regions Visited 3 Branch Regions . Pre-discovered Areas . | . . . . Known Exits Taken 1 | . 1 . . Unknown Exits Taken 2 | 1 . 1 . Scrap Searched . | . . . . Spaces Dug . | . . . . Terrain Destroyed 14 | . . . 14 Melee . | . . . . Projectile 14 | . . . 14 AOE . | . . . . Terrain Rammed . | . . . . Walls Destroyed . | . . . . Machines Disabled . | . . . . Actions | -11 -10 -9 -8 --------- Run | Scr Mat Mat Mat Total 1040 | 51 210 505 274 Wait 104 | . 4 60 40 Move 742 | 41 199 324 178 Hop . | . . . . Pick Up 28 | 4 4 17 3 Fast Attach 16 | 6 1 5 4 Attach 9 | . . 3 6 Detach 2 | . . 2 . Swap 9 | . . 5 4 Drop 22 | . . 18 4 Fire 77 | . 1 42 34 Melee . | . . . . Ram 1 | . . . 1 Kick 29 | . . 29 . Crush 1 | . 1 . . Escape Stasis . | . . . . Rewire . | . . . . Trap . | . . . . Miscellaneous . | . . . . Route ------- -11/Scrapyard -10/Materials -9/Materials -8/Materials History --------- Turn | Location | Event 14 | -11/Scrapyard | Discovered new exit (range 15) 77 | -11/Scrapyard | Entered Materials 300 | -10/Materials | Build established: Mutant 394 | -10/Materials | Discovered new exit (range 5) 408 | -10/Materials | Identified exit to Materials 410 | -10/Materials | Entered another Materials area 410 | -9/Materials | Evolved 2 slots: Propulsion x2 1113 | -9/Materials | Discovered new exit (range 5) 1119 | -9/Materials | Entered another Materials area 1119 | -8/Materials | Evolved 2 slots: Utility x2 1320 | -8/Materials | Lost 3 parts (1p2n) 1820 | -8/Materials | Core integrity fell below 50% 1846 | -8/Materials | Core integrity fell below 20% 1866 | -8/Materials | Destroyed by G-50 Soldier with Heavy Laser Last Messages --------------- 01835_ Imp. Field Recycling Unit destroyed. 01835_ Critical hit (Burn: +37). 01838_ Missile Launcher destroyed. 01841_ G-50 Soldier knocked back. 01843_ Y-45 Defender destroyed. 01845_ Acquired 43 matter. 01849_ T-07 Excavator is excavating. 01849_ Critical hit (Burn: +37). 01849_ G-47 Trooper destroyed. 01854_ T-07 Excavator is excavating. 01854_ Flak Cannon destroyed. 01857_ Identified Imp. Flight Unit. 01857_ Malfunction: Faulty Imp. Flight Unit damaged (-10). 01857_ R-06 Scavenger collects Particle Gun. 01858_ T-07 Excavator is excavating. 01861_ R-06 Scavenger collects Lgt. Treads. 01862_ T-07 Excavator is excavating. 01863_ K-01 Serf collects debris. 01864_ Acquired 55 matter. 01864_ R-06 Scavenger destroyed. Map ----- +----------------------------------------------------+ | ?????????????????????????????????????????????????? | | ?????????????????????????????????????????????????? | | ?????????????????????????????????????????????????? | | ?????????????????????????????????????????????????? | | ?????????????????????????????????????????????????? | | ?????????????????????????????????????????????????? | | ?????????????????????????????????????????????????? | | ?????????????????????????????????????????????????? | | ?????????????????????????????????????????????????? | | ???????????????????????? ??????????????????????? | | ???????????????????????# ??? ?????????????????? | | ???????????????????????# ?? ]?????????????????? | | ???????????????????????# ?? ?????????????????? | | ??????????????????????? +??! ????????????????? | | ???????????????????????# #?? ????????????????? | | ???????????????????????# #?? !????????????????? | | ???????????????????????# #??? ????????????????? | | ???????????????????????# #####"#######?????????? | | ???????????????????????# ## #?????????? | | ???????????????????????# ## """ #?????????# | | ???????????????????????# g## % |""" #?????????# | | ???????????????##??????# ## " |%""" #?????????# | | ???????????????# ????# ## "R |%""" #?????????# | | ???????????????# #?# ## """||| ##????????# | | ???????????????# #*![## "##???????# | | ???????????????# =@%##########+"""######### | | ???????????????# #k!=! | | ???????????????######??#g * r ######### | | ???????????????????????#% #???????# | | ???????????????????????###############; "#???????# | | ?????????????????????????????????????#"+########## | | ?????????????????????????????????????## ## | | ??????????????????????????????????????# ## | | ??????????????????????????????????????# # | | ??????????????????????????????????????# + | | ??????????????????????????????????????# # | | ??????????????????????????????????????# ## | | ??????????????????????????????????????# #? | | ??????????????????????????????????????# #? | | ??????????????????????????????????????###########? | | ?????????????????????????????????????????????????? | | ?????????????????????????????????????????????????? | | | | | | | | | | | | | | | | | +----------------------------------------------------+ Best States ------------- Heat Dissipation 31 Energy Generation 12 Energy Capacity 265 Matter Stores 223 Matter Capacity 300 Sight Range 16 Terrain Scan Density 10 Evasion (%) 55 Recoil Reduction 2 Item Schematics ----------------- None Robot Schematics ------------------ None Fabricated ------------ Nothing Alien Tech Used ----------------- None Achievements -------------- None Challenges ------------ None Game ------ Seed ImprovedMiniDoublenader Manual? 0 Play Time 00:19:51 Cumulative 16.8 hours Start 2022.04.26 @ 22:17:21 End 2022.04.26 @ 22:36:35 Sessions 1 Manual Loads 0 Difficulty Rogue Special Mode None Game No. 40 Rogue 40 Adventurer 0 Explorer 0 Win Type - Total 0 Types 0/0/0/0/0/0/0/0/0 Lore% 6 Gallery% 21 Achievement% 15 Wizard Run 0 Options --------- ASCII 0 Keyboard 0 Movement Numpad Keybinds 0 Fullscreen 1 Font 24/Smallcaps Map View 113x50 Tactical HUD 1 Map Filters NONE Filters NONE Steam 1 RUN: d0338a39-dc03-4a45-b92a-3a4b24ec9108